bitfinex/quotes_ETHUSD_20220226
["timestamp","ask_amount","ask_price","bid_price","bid_amount"]
[1645907462977,0.74436624,2824.9,2824.7,0.11383497]
[1645907464380,0.66955957,2824.8,2824.7,0.11383497]
[1645907465316,0.74436624,2824.8,2824.7,0.11383497]
[1645907465717,1.63020624,2824.8,2824.7,0.11383497]
[1645907467719,1.63020624,2824.8,2824.7,0.11273482]
[1645907469858,0.96064667,2824.8,2824.7,0.11273482]
[1645907470059,1.63071446,2824.8,2824.7,0.11273482]
[1645907470960,0.96064667,2824.8,2824.7,0.11273482]
[1645907471161,0.96064667,2824.8,2824.7,0.10869465]
[1645907471162,1.63080708,2824.8,2824.7,0.10869465]
[1645907471362,4.46064667,2824.8,2824.7,0.10869465]
[1645907471561,2.66181229,2824.8,2824.7,0.10869465]
[1645907471762,1.98485723,2824.8,2824.7,0.10869465]
[1645907471968,2.87602285,2824.8,2824.7,0.10869465]
[1645907474110,1.98485723,2824.8,2824.7,0.10869465]
[1645907474311,2.57602285,2824.8,2824.7,0.10869465]
[1645907474515,2.36181229,2824.8,2824.7,0.10869465]
[1645907474912,1.47064667,2824.8,2824.7,0.10869465]
[1645907477163,2.36181229,2824.8,2824.7,0.10869465]
[1645907477359,1.47064667,2824.8,2824.7,0.10869465]
[1645907477566,0.58480667,2824.8,2824.7,0.10869465]
[1645907477963,1.47597229,2824.8,2824.7,0.10869465]
[1645907479770,0.58480667,2824.8,2824.7,0.10869465]
[1645907480226,2.36177229,2824.8,2824.7,0.10869465]
[1645907480629,1.47597229,2824.8,2824.7,0.10869465]
[1645907481832,0.58480667,2824.8,2824.7,0.10869465]
[1645907482634,1.47597229,2824.8,2824.7,0.10869465]
[1645907482835,0.58480667,2824.8,2824.7,0.10869465]
[1645907483035,1.47597229,2824.8,2824.7,0.10869465]
[1645907485773,0.58480667,2824.8,2824.7,0.10869465]
[1645907486373,1.47597229,2824.8,2824.7,0.10869465]
[1645907486974,0.58480667,2824.8,2824.7,0.10869465]
[1645907487172,1.47597229,2824.8,2824.7,0.10869465]
[1645907487373,2.36178229,2824.8,2824.7,0.10869465]
[1645907489017,1.47061667,2824.8,2824.7,0.10869465]
[1645907489215,2.36553812,2824.8,2824.7,0.10869465]
[1645907490618,1.47061667,2824.8,2824.7,0.10869465]
[1645907491665,1.47061667,2824.8,2824.7,0.106677]
[1645907496216,1.77061667,2824.8,2824.7,0.106677]
[1645907496416,3.29929665,2824.8,2824.7,0.106677]
[1645907496616,1.96712369,2824.8,2824.7,0.106677]
[1645907496816,1.08131369,2824.8,2824.7,0.106677]
[1645907497418,2.42642207,2824.8,2824.7,0.106677]
[1645907497758,0.78131369,2824.8,2824.7,0.106677]
[1645907497914,0.58480667,2824.8,2824.7,0.106677]
[1645907499791,1.85526641,2824.8,2824.7,0.106677]
[1645907499990,1.93007308,2824.8,2824.7,0.106677]
[1645907500398,1.42007308,2824.8,2824.7,0.106677]
[1645907500995,0.07480667,2824.8,2824.7,0.106677]
[1645907501393,1.42007308,2824.9,2824.7,0.106677]
[1645907501594,0.07480667,2824.8,2824.7,0.106677]
[1645907501795,1.34526641,2824.9,2824.8,0.00101408]
[1645907501796,1.64526641,2824.9,2824.8,0.00101408]
[1645907502394,0.37482571,2824.9,2824.8,0.00101408]
[1645907502838,0.96062571,2824.9,2824.8,0.00101408]
[1645907503046,0.07482571,2824.9,2824.8,0.00101408]
[1645907503440,1.34534051,2824.9,2824.8,0.00101408]
[1645907503639,0.07482571,2824.9,2824.8,0.00101408]
[1645907503842,1.42016622,2824.9,2824.8,0.00101408]
[1645907504239,1.72016622,2824.9,2824.8,0.00101408]
[1645907504441,0.07482571,2824.9,2824.8,0.00101408]
[1645907507664,0.07482571,2824.9,2824.7,0.10164192]
[1645907510117,0.74743628,2824.9,2824.8,1.49212877]
[1645907510312,0.9716398,2824.9,2824.7,0.10164192]
[1645907510516,0.07482571,2824.8,2824.7,0.10164192]
[1645907510712,0.9716398,2824.9,2824.7,0.10164192]
[1645907510919,0.9716398,2824.9,2824.7,2.87236074]
[1645907511116,0.9716398,2824.9,2824.7,0.10164192]
[1645907511818,1.34534051,2824.9,2824.7,0.10164192]
[1645907512017,1.42016622,2824.9,2824.7,0.10164192]
[1645907512218,0.07482571,2824.8,2824.7,0.10164192]
[1645907512424,10.38584,2824.7,2824.2,0.25523603]
[1645907512628,10.38584,2824.7,2824.1,0.00358431]
[1645907512629,1.70006582,2824.4,2824.1,0.00358431]
[1645907512821,1.93009153,2824.3,2823.9,0.14518431]
[1645907513020,0.89690556,2824.0,2823.7,0.00358431]
[1645907513221,1.40690556,2824.0,2823.5,0.00358431]
[1645907513425,0.67268214,2823.7,2823.5,1.46292656]
[1645907513622,0.74750785,2823.6,2823.1,0.00358431]
[1645907513883,0.07482571,2823.5,2823.1,1.4620745]
[1645907514088,0.67268214,2823.7,2823.1,1.46565881]
[1645907514281,0.74750785,2823.6,2823.1,1.4620745]
[1645907514483,0.07482571,2823.5,2823.1,1.4620745]
[1645907514684,0.07482571,2823.4,2823.1,1.4620745]
[1645907514882,0.07482571,2823.3,2823.1,1.4620745]
[1645907515180,0.67268214,2823.6,2823.1,1.4620745]
[1645907515181,0.07482571,2823.2,2823.1,1.4620745]
[1645907515382,0.67268214,2823.6,2823.1,1.82210735]
[1645907515583,0.07482571,2823.5,2823.2,1.4620745]
[1645907515782,0.07482571,2823.4,2823.2,1.4620745]
[1645907515987,0.89690556,2823.9,2823.2,1.4620745]
[1645907515988,0.07482571,2823.3,2823.2,1.4620745]
[1645907516383,0.07482571,2823.5,2823.2,1.4620745]
[1645907516681,0.07482571,2823.4,2823.3,1.4620745]
[1645907517080,0.67268214,2823.6,2823.3,1.4620745]
[1645907517280,0.74750785,2823.8,2823.3,1.4620745]
[1645907517501,0.67268214,2823.8,2823.0,0.00358431]
[1645907517706,0.74752858,2823.7,2823.3,0.00523258]
[1645907517906,0.07484644,2823.6,2823.3,0.00523258]
[1645907518107,0.07484644,2823.5,2823.3,0.00523258]
[1645907518307,0.07484644,2823.4,2823.3,0.00523258]
[1645907518513,0.67268214,2823.7,2823.3,0.00523258]
[1645907518709,0.67268214,2823.7,2823.1,0.00358431]
[1645907518909,0.67268214,2823.7,2823.2,0.00523272]
[1645907519111,0.67268214,2823.7,2823.3,1.45925772]
[1645907519511,0.07484644,2823.6,2823.3,1.45925772]
[1645907519710,0.07484644,2823.5,2823.3,1.45925772]
[1645907519911,0.07484644,2823.4,2823.3,1.45925772]
[1645907520113,0.07484644,2823.4,2823.3,1.4644903]
[1645907520415,0.07484644,2823.8,2823.3,5.3192903]
[1645907520613,1.33830556,2824.4,2823.4,1.81405772]
[1645907520614,0.07484644,2823.7,2823.4,1.81405772]
[1645907520816,0.07484644,2823.6,2823.5,4.95925772]
[1645907521019,0.07484644,2823.6,2823.5,5.99019967]
[1645907522356,0.67268214,2824.3,2823.5,5.99019967]
[1645907522557,0.67268214,2824.3,2823.5,4.96284203]
[1645907522558,0.07484644,2823.6,2823.5,4.96284203]
[1645907522758,0.07484644,2823.6,2823.4,0.36003691]
[1645907522959,0.74752858,2824.3,2823.4,0.00523691]
[1645907523160,0.07483618,2824.2,2823.5,1.46149929]
[1645907523360,0.07483618,2824.1,2823.5,1.46149929]
[1645907523565,0.07483618,2824.0,2823.5,1.46149929]
[1645907523762,0.07483618,2823.9,2823.7,0.00523649]
[1645907523963,0.07483618,2823.8,2823.7,0.00523649]
[1645907524159,0.67268214,2824.3,2823.7,1.46302765]
[1645907524360,0.81408214,2824.3,2823.8,1.45779116]
[1645907524559,0.81408214,2824.3,2823.7,0.0088208]
[1645907524560,0.07483618,2824.2,2823.7,0.0088208]
[1645907524758,0.07483618,2824.1,2823.5,1.02655084]
[1645907525007,0.07483618,2824.0,2823.9,0.00523622]
[1645907525205,0.67268214,2824.3,2823.9,0.00523622]
[1645907526012,0.67268214,2824.3,2823.7,0.00358431]
[1645907526217,0.67268214,2824.3,2824.0,0.00523615]
[1645907526814,0.67268214,2824.3,2824.0,0.00443615]
[1645907527013,0.74751832,2824.3,2824.0,0.00443615]
[1645907527217,0.07483618,2824.2,2823.9,0.9496]
[1645907527414,0.07483618,2824.1,2823.9,0.9496]
[1645907527615,0.07483618,2824.0,2823.9,0.9496]
[1645907527814,0.67268214,2824.3,2823.9,0.9496]
[1645907528014,0.67268214,2824.3,2823.6,3.5]
[1645907528214,0.67268214,2824.3,2823.7,1.4574706]
[1645907528873,0.74751832,2824.2,2823.7,1.4574706]
[1645907529074,0.07483618,2824.1,2823.4,1.19948431]
[1645907529269,0.67268214,2824.2,2823.5,1.45717775]
[1645907529270,0.07483618,2824.0,2823.5,1.45717775]
[1645907529470,0.67268214,2824.2,2823.6,1.45717775]
[1645907529471,0.07483618,2823.9,2823.6,1.45717775]
[1645907529671,0.67268214,2824.2,2823.4,0.00358431]
[1645907529871,0.67268214,2824.2,2823.6,0.00523663]
[1645907529872,0.74751832,2824.2,2823.6,0.00523663]
[1645907530072,0.74751832,2824.2,2823.7,1.45713674]
[1645907530269,0.07483618,2824.1,2823.6,0.00523663]
[1645907530472,0.07483618,2824.0,2823.6,0.00523663]
[1645907530671,0.07483618,2823.9,2823.4,0.00358431]
[1645907530874,1.03830556,2824.5,2823.7,0.00523649]
[1645907530875,0.07483618,2823.8,2823.7,0.00523649]
[1645907531272,0.67268214,2824.1,2823.7,0.00523649]
[1645907531674,0.74751832,2824.0,2823.7,0.00523649]
[1645907531872,0.74751832,2824.0,2823.3,0.00358431]
[1645907531873,0.67268214,2823.9,2823.3,0.00358431]
[1645907532072,0.74751832,2823.9,2823.3,0.00358431]
[1645907532272,0.67268214,2823.9,2823.8,0.00523642]
[1645907533110,0.67268214,2823.9,2823.4,0.00358431]
[1645907533410,0.67268214,2823.9,2823.7,0.00523649]
[1645907534214,0.67268214,2823.9,2823.3,0.00358431]
[1645907534415,0.67268214,2823.9,2823.3,1.45678381]
[1645907534612,0.67268214,2823.9,2823.7,0.00523656]
[1645907535418,0.07484622,2823.8,2823.4,0.00358431]
[1645907535617,0.97268214,2824.1,2823.4,1.45631253]
[1645907535818,0.07484622,2824.0,2823.7,0.00523656]
[1645907536464,0.07484622,2823.9,2823.7,0.00523656]
[1645907536671,0.07484622,2823.8,2823.3,0.95318431]
[1645907536867,0.07484622,2823.7,2823.4,1.45634309]
[1645907537066,0.07484622,2823.6,2823.3,0.00358431]
[1645907537364,0.07484622,2823.5,2823.3,1.45651067]
[1645907537571,0.67268214,2823.9,2823.2,1.83448431]
[1645907537769,0.74752836,2823.9,2823.2,1.8309]
[1645907538068,0.74752836,2823.9,2823.3,1.45651294]
[1645907538268,0.74752836,2823.9,2823.4,0.0052369]
[1645907538671,0.07484622,2823.9,2823.4,0.0052369]
[1645907538870,0.07484622,2823.8,2823.4,0.0052369]
[1645907539069,0.07484622,2823.7,2823.4,0.0052369]
[1645907539274,0.07484622,2823.6,2823.3,0.00358431]
[1645907539469,0.67268214,2823.9,2823.5,0.00523677]
[1645907539670,0.07484705,2823.8,2823.5,0.00523677]
[1645907540003,0.07484705,2823.7,2823.5,0.00523677]
[1645907540210,0.74752919,2824.0,2823.5,0.00523677]
[1645907540412,0.74752919,2824.0,2823.3,0.00358431]
[1645907540609,0.07484705,2823.9,2823.5,0.00523684]
[1645907540809,0.74752919,2824.0,2823.5,0.00523684]
[1645907541111,0.74752919,2823.9,2823.2,1.78972115]
[1645907541409,0.07484705,2823.8,2823.3,1.46086437]
[1645907541613,0.07484705,2823.7,2823.3,1.46086437]
[1645907541818,0.07484705,2823.6,2823.3,1.45726574]
[1645907542015,0.07484705,2823.5,2823.3,1.46086437]
[1645907542214,0.07484705,2823.4,2823.3,1.45726574]
[1645907542414,0.07484705,2823.4,2823.3,1.46086437]
[1645907542613,0.07484705,2823.4,2823.3,1.45726574]
[1645907542812,0.07484705,2823.9,2823.3,1.45726574]
[1645907543012,0.07484705,2823.8,2823.3,1.46086437]
[1645907543211,0.07484705,2823.7,2823.3,1.46086437]
[1645907543412,0.07484705,2823.6,2823.3,1.45726574]
[1645907543614,0.07484705,2823.5,2823.3,1.46086437]
[1645907543857,0.07484705,2823.4,2823.3,1.45726574]
[1645907544061,0.07484705,2823.9,2823.3,1.46086437]
[1645907544263,0.07484705,2823.9,2823.3,1.45726574]
[1645907544569,0.68879298,2824.2,2823.3,1.45726574]
[1645907544570,0.07484705,2823.8,2823.4,3.5]
[1645907544866,2.09070556,2824.4,2823.5,1.45726574]
[1645907544867,0.07484705,2823.7,2823.5,1.45726574]
[1645907545062,0.67268214,2824.4,2823.6,3.5]
[1645907545264,0.67268214,2824.4,2823.7,1.45726574]
[1645907545464,0.67268214,2824.4,2823.8,3.5]
[1645907545668,0.07483249,2824.3,2823.9,0.9496]
[1645907545864,0.67268214,2824.5,2823.9,0.9496]
[1645907545865,0.07483249,2824.2,2823.9,0.9496]
[1645907546066,0.07483249,2824.1,2823.9,0.9496]
[1645907546264,0.07483249,2824.0,2823.9,0.9496]
[1645907546476,0.07483249,2824.0,2823.9,6.20625898]
[1645907546770,1.17268214,2824.6,2823.9,6.20625898]
[1645907546771,0.52271414,2824.6,2824.2,0.14662183]
[1645907546968,0.07482053,2824.5,2824.2,1.62042183]
[1645907547171,0.07482053,2824.5,2824.4,0.9496]
[1645907547367,0.07482053,2824.5,2824.3,3.8]
[1645907547613,0.07482053,2824.5,2824.3,4.8]
[1645907547915,0.07482053,2824.5,2824.4,3.5]
[1645907548317,0.07482053,2824.5,2824.4,4.5]
[1645907549320,0.07482053,2824.5,2824.4,5.95511785]
[1645907550322,0.00454347,2824.6,2824.5,1.3934517]
[1645907550525,0.00454347,2824.6,2824.5,4.8934517]
[1645907550722,4.347e-05,2824.6,2824.5,6.1934517]
[1645907550920,4.347e-05,2824.6,2824.5,15.2021517]
[1645907551121,0.67268214,2825.6,2824.5,20.1131]
[1645907551351,0.5,2825.3,2824.7,0.3548]
[1645907551554,0.5,2825.3,2824.8,3.8548]
[1645907551754,0.5,2825.3,2824.8,5.3383]
[1645907552051,0.5,2825.3,2824.8,6.3383]
[1645907552454,0.5,2825.3,2825.0,1.21803529]
[1645907552856,0.5,2825.3,2825.1,3.5]
[1645907553257,0.5,2825.3,2825.1,4.5]
[1645907553458,0.5,2825.3,2825.2,3.5]
[1645907553757,0.5,2825.3,2825.2,4.5]
[1645907553957,0.50453231,2825.3,2825.2,4.5]
[1645907554561,0.00453231,2825.3,2825.2,4.8548]
[1645907554765,0.00357709,2825.8,2825.2,15.9748]
[1645907555015,0.00453231,2825.4,2825.2,15.9748]
[1645907555206,0.00453231,2825.4,2825.3,10.9337]
[1645907555605,0.00453231,2825.4,2825.3,11.9337]
[1645907556011,0.5,2825.5,2825.3,11.5789]
[1645907556213,0.50453231,2825.5,2825.3,8.0789]
[1645907557211,0.5,2825.5,2825.3,8.0789]
[1645907557417,0.50453231,2825.5,2825.3,8.0789]
[1645907558413,0.5,2825.5,2825.3,8.0789]
[1645907558614,0.50453231,2825.5,2825.3,8.0789]
[1645907559359,0.50453231,2825.5,2825.3,7.0789]
[1645907559560,0.5,2825.5,2825.3,7.0789]
[1645907559966,0.50453231,2825.5,2825.3,7.0789]
[1645907560569,0.50453231,2825.5,2825.3,8.0789]
[1645907560765,0.5,2825.5,2825.4,3.5]
[1645907560966,0.5,2825.5,2825.4,4.345]
[1645907561167,0.5,2825.5,2825.4,5.345]
[1645907561168,0.50453231,2825.5,2825.4,5.345]
[1645907561467,0.00463231,2825.5,2825.4,16.5198]
[1645907561664,0.00453231,2825.5,2825.4,16.5198]
[1645907562063,0.00357709,2826.3,2825.4,16.5198]
[1645907562263,0.00453231,2825.6,2825.4,16.5198]
[1645907562527,0.00453231,2825.6,2825.5,14.6748]
[1645907562714,0.00453231,2825.6,2825.5,15.6748]
[1645907563214,0.67268214,2826.6,2825.5,15.6748]
[1645907563413,0.00453231,2825.7,2825.5,18.3295276]
[1645907563613,0.00453231,2825.7,2825.6,16.02933473]
[1645907563816,0.00453231,2825.7,2825.6,17.02933473]
[1645907564215,0.00453231,2825.7,2825.6,17.91425473]
[1645907564416,0.67268214,2826.9,2825.9,12.0596479]
[1645907564616,0.00357709,2827.0,2826.0,3.8548]
[1645907564617,0.01812654,2826.2,2826.0,3.8548]
[1645907564818,0.01812654,2826.2,2826.1,10.9317]
[1645907565215,0.01812654,2826.2,2826.1,13.10638841]
[1645907565615,0.67268214,2827.0,2826.1,12.75158841]
[1645907565616,0.00357709,2827.0,2826.1,12.75158841]
[1645907565816,0.67268214,2827.1,2826.1,12.75158841]
[1645907565817,0.00452107,2826.3,2826.1,12.75158841]
[1645907566257,0.00452107,2826.3,2826.2,3.5]
[1645907566460,0.00452107,2826.3,2826.1,9.55158841]
[1645907566660,0.00452107,2826.3,2826.2,3.5]
[1645907566861,0.00357709,2826.9,2826.2,3.5]
[1645907566862,0.00357709,2826.9,2826.2,1.0]
[1645907567062,0.00452107,2826.3,2826.2,1.0]
[1645907567262,0.00452107,2826.3,2826.1,9.55158841]
[1645907567668,0.00452107,2826.3,2826.1,9.25158841]
[1645907568065,0.00357709,2827.3,2826.1,9.25158841]
[1645907568264,0.00452107,2826.3,2826.1,9.25158841]
[1645907568663,0.00452107,2826.3,2826.1,20.42638841]
[1645907569266,0.00357709,2827.3,2826.1,20.42638841]
[1645907569471,0.00452107,2826.3,2826.1,20.42638841]
[1645907569665,0.00452107,2826.3,2826.2,12.7468]
[1645907570105,0.00452107,2826.3,2826.2,13.7468]
[1645907570311,3.50357709,2827.5,2826.2,2.9268]
[1645907570511,6.15025265,2827.5,2826.2,2.9268]
[1645907570708,0.00452107,2826.4,2826.2,2.9268]
[1645907571109,0.00452107,2826.4,2826.1,7.0769]
[1645907571507,0.8648,2826.3,2826.1,7.0769]
[1645907571711,3.5,2826.2,2826.1,7.0769]
[1645907571908,4.01,2826.2,2826.1,7.0769]
[1645907572308,4.3648,2826.2,2826.1,7.0769]
[1645907574152,4.5062,2826.2,2826.1,7.0769]
[1645907574351,4.5062,2826.2,2826.1,2.84999815]
[1645907574562,4.5062,2826.2,2825.3,0.25]
[1645907574563,2.66337285,2826.0,2825.3,0.25]
[1645907574760,4.5062,2825.9,2824.9,2.0795]
[1645907574959,4.50977709,2825.9,2824.9,2.0795]
[1645907575563,0.3548,2825.6,2824.9,2.0795]
[1645907575761,3.8548,2825.5,2824.9,2.0795]
[1645907575960,0.3548,2825.5,2824.9,2.0795]
[1645907576562,4.1548,2825.5,2824.9,2.0795]
[1645907576763,4.6648,2825.5,2824.9,2.0795]
[1645907576960,4.3648,2825.5,2824.9,2.0795]
[1645907577515,0.8648,2825.5,2824.9,2.0795]
[1645907577914,0.1414,2825.6,2824.9,2.0795]
[1645907578114,0.00809736,2825.8,2824.9,2.0795]
[1645907578115,0.51809736,2825.8,2824.9,2.0795]
[1645907578910,0.86837709,2825.8,2824.9,2.0795]
[1645907579108,0.8728976,2825.8,2824.9,2.0795]
[1645907579309,0.3548,2825.7,2824.9,2.0795]
[1645907579510,4.3648,2825.7,2824.9,2.0795]
[1645907579710,0.3548,2825.5,2824.9,2.0795]
[1645907580112,3.5,2825.4,2824.9,2.0795]
[1645907580314,0.8648,2825.3,2824.9,2.0795]
[1645907581354,3.8548,2825.2,2824.3,1.9315]
[1645907581556,3.5,2825.1,2824.3,4.01894017]
[1645907581753,0.8648,2825.2,2824.3,5.01894017]
[1645907582357,0.8648,2825.2,2824.3,5.0137]
[1645907582559,0.8648,2825.2,2824.3,5.01894]
[1645907583560,0.8648,2825.2,2824.3,5.0137]
[1645907583759,0.8648,2825.2,2824.3,5.01894]
[1645907584160,3.5,2825.1,2824.3,5.01894]
[1645907584361,3.5,2825.1,2824.3,3.08744]
[1645907584559,3.5,2825.1,2824.3,2.08744]
[1645907584761,3.5,2825.1,2824.3,2.0822]
[1645907585014,3.5,2825.1,2824.3,2.08743998]
[1645907585213,3.8548,2825.1,2824.3,2.08743998]
[1645907585611,0.51,2825.2,2824.3,2.08743998]
[1645907585812,0.1414,2825.4,2824.3,2.08743998]
[1645907586018,0.00357709,2825.5,2824.4,1.61975463]
[1645907586211,0.00357709,2825.5,2824.4,0.1416]
[1645907586432,0.00357709,2825.5,2824.5,1.47894077]
[1645907586620,0.0571935,2825.7,2824.6,0.1414]
[1645907586621,0.00357709,2825.6,2824.6,0.1414]
[1645907586815,0.0571935,2825.7,2824.7,1.47894077]
[1645907587017,0.0571935,2825.7,2824.8,0.1414]
[1645907587415,0.0571935,2825.7,2824.4,3.1363]
[1645907587816,0.0571935,2825.7,2824.4,2.1363]
[1645907588016,0.0571935,2825.7,2824.4,3.1363]
[1645907588214,0.0571935,2825.7,2824.5,1.48104712]
[1645907588415,0.0571935,2825.7,2824.9,1.36522008]
[1645907588633,0.01122121,2825.1,2824.4,3.4363]
[1645907588866,0.03288046,2825.1,2824.5,1.48120406]
[1645907589669,0.03288046,2825.1,2824.7,1.20328294]
[1645907591281,0.03288046,2825.1,2824.8,1.48431718]
[1645907591673,0.04007396,2825.7,2824.8,1.48431718]
[1645907591872,0.04007396,2825.7,2824.7,2.20328294]
[1645907592071,0.04007396,2825.7,2824.7,1.20328294]
[1645907592723,0.1414,2825.6,2824.4,2.9949]
[1645907592924,0.86837709,2825.5,2824.5,1.48483332]
[1645907593125,3.5,2825.4,2824.4,2.9949]
[1645907593326,0.51,2825.3,2824.4,1.9949]
[1645907593525,3.5,2825.2,2824.4,2.9949]
[1645907593724,3.5,2825.2,2824.4,1.9949]
[1645907593934,3.8548,2825.2,2824.4,1.9949]
[1645907594128,4.3648,2825.2,2824.3,2.08739341]
[1645907594327,4.5062,2825.2,2824.3,2.08739341]
[1645907594624,4.5062,2825.2,2824.3,2.0822]
[1645907594824,0.03282672,2825.0,2824.3,2.08744002]
[1645907595024,0.54282672,2825.0,2824.3,2.08744002]
[1645907595225,0.54282672,2825.0,2824.3,3.25666111]
[1645907595426,0.03282672,2825.0,2824.3,4.25666111]
[1645907595625,0.03282672,2825.0,2824.3,3.25142109]
[1645907595828,0.03282672,2825.0,2824.3,4.25666104]
[1645907596024,0.03282672,2825.0,2824.3,3.20666104]
[1645907596259,0.03282672,2825.0,2824.4,1.48487822]
[1645907597071,0.03282672,2825.0,2824.3,3.0322]
[1645907597072,0.03282672,2825.0,2824.3,2.03743998]
[1645907597668,3.53282672,2825.0,2824.3,2.03743998]
[1645907598068,3.53282672,2825.0,2824.3,2.0322]
[1645907598270,3.53282672,2825.0,2824.3,2.03743995]
[1645907598976,3.8548,2825.0,2824.3,2.03743995]
[1645907599174,0.51,2824.9,2824.3,2.02613752]
[1645907599372,3.6414,2824.8,2824.3,2.02613752]
[1645907599573,0.51,2824.7,2824.3,0.00523995]
[1645907600010,3.5,2824.6,2824.3,0.00523995]
[1645907600209,4.01,2824.6,2824.3,0.00523995]
[1645907600413,4.01,2824.6,2824.2,0.14662183]
[1645907600811,4.01,2824.6,2824.3,0.0052399]
[1645907601010,5.19592,2824.6,2824.3,0.0052399]
[1645907601212,5.33732,2824.6,2824.3,0.0052399]
[1645907601410,5.49592,2824.6,2824.3,0.0052399]
[1645907601615,5.49592,2824.6,2824.2,0.14662183]
[1645907602011,5.49592,2824.6,2824.3,0.0052399]
[1645907602012,5.19592,2824.6,2824.3,0.0052399]
[1645907602810,5.09592,2824.6,2824.2,0.14662183]
[1645907603010,5.09592,2824.6,2824.3,0.0052399]
[1645907604173,5.09592,2824.6,2824.2,0.14662183]
[1645907604365,4.21,2824.6,2824.3,0.0052399]
[1645907604566,0.1414,2824.5,2824.3,0.0052399]
[1645907604767,0.51,2824.4,2824.3,0.0052399]
[1645907605167,0.51,2824.4,2824.2,0.14662183]
[1645907605567,0.51,2824.4,2824.2,0.15186187]
[1645907606469,0.51,2824.4,2824.2,0.14662183]
[1645907606677,0.51,2824.4,2824.2,0.15186194]
[1645907607712,0.46,2824.4,2824.2,0.14662183]
[1645907607913,0.46,2824.4,2824.2,0.15186194]
[1645907608925,0.46,2824.4,2824.2,0.14662183]
[1645907609118,0.46,2824.4,2824.2,0.15186194]
[1645907610018,0.46,2824.4,2824.2,0.14662183]
[1645907610019,0.96,2824.4,2824.2,0.14662183]
[1645907610215,0.96,2824.4,2824.2,0.15186194]
[1645907610419,0.5,2824.4,2824.2,0.15186194]
[1645907610615,0.8648,2824.7,2824.2,0.15186194]
[1645907610815,1.1648,2824.7,2824.2,0.15186194]
[1645907611270,1.1648,2824.7,2824.2,0.14662183]
[1645907611475,1.195,2824.9,2824.3,1.36081621]
[1645907611674,3.1891,2825.1,2824.3,1.36081621]
[1645907612274,4.89562,2825.4,2824.3,1.36081621]
[1645907612473,0.3548,2825.3,2824.3,1.35557631]
[1645907612675,0.6548,2825.3,2824.3,1.36081629]
[1645907613077,0.3,2825.3,2824.3,1.36081629]
[1645907613679,1.69562,2825.4,2824.3,1.35557631]
[1645907613881,1.69562,2825.4,2824.3,1.36081633]
[1645907614486,2.05042,2825.4,2824.3,1.36081633]
[1645907614783,2.05042,2825.4,2824.3,1.35557631]
[1645907615021,2.19182,2825.4,2824.3,1.36081636]
[1645907615219,0.89690556,2825.3,2824.3,1.36081636]
[1645907615619,4.39690556,2825.3,2824.3,0.00524005]
[1645907615821,0.88572,2825.1,2824.3,0.00524005]
[1645907616020,0.88572,2825.1,2824.2,0.14662183]
[1645907616221,4.38572,2825.1,2824.2,0.14662183]
[1645907616420,0.3548,2825.0,2824.3,0.00524002]
[1645907616621,3.5,2824.9,2824.3,0.00524002]
[1645907616821,2.06170556,2825.0,2824.3,0.00524002]
[1645907616822,1.76170556,2825.0,2824.3,0.00524002]
[1645907617025,0.8648,2825.0,2824.3,0.00524002]
[1645907617221,5.26170556,2825.0,2824.2,0.14662183]
[1645907617624,7.03342556,2825.0,2824.3,0.00523995]
[1645907617822,1.03830556,2824.9,2824.3,0.00523995]
[1645907618123,4.01,2824.8,2824.3,0.00523995]
[1645907618321,4.31,2824.8,2824.3,0.00523995]
[1645907618521,5.20690556,2824.8,2824.2,0.14662183]
[1645907618765,5.20690556,2824.8,2824.3,0.00523993]
[1645907618766,4.31,2824.8,2824.3,0.00523993]
[1645907619674,0.51,2824.8,2824.2,0.14662183]
[1645907619870,0.51,2824.8,2824.3,0.0052399]
[1645907620872,4.01,2824.8,2824.2,0.14662183]
[1645907621070,4.01,2824.8,2824.3,0.0052399]
[1645907622179,4.01,2824.8,2824.2,0.14662183]
[1645907622372,4.3648,2824.8,2824.3,0.0052399]
[1645907623220,5.26170556,2824.8,2824.2,0.14662183]
[1645907623419,1.76170556,2824.8,2824.3,0.0052399]
[1645907623618,4.90690556,2824.8,2824.3,0.0052399]
[1645907624517,4.90690556,2824.8,2824.2,0.14662183]
[1645907624721,4.90690556,2824.8,2824.3,0.0052399]
[1645907625717,4.90690556,2824.8,2824.2,0.14662183]
[1645907625921,4.90690556,2824.8,2824.3,0.0052399]
[1645907626763,4.90690556,2824.8,2824.2,0.14662183]
[1645907627166,4.90690556,2824.8,2824.3,0.0052399]
[1645907627568,5.56170556,2824.8,2824.3,0.0052399]
[1645907627970,5.56170556,2824.8,2824.2,0.14662183]
[1645907628272,5.56170556,2824.8,2824.3,0.0052399]
[1645907628470,2.06170556,2824.8,2824.3,0.0052399]
[1645907628669,5.56170556,2824.8,2824.3,0.0052399]
[1645907629272,5.56170556,2824.8,2824.2,0.14662183]
[1645907629472,5.56170556,2824.8,2824.3,0.0052399]
[1645907630143,1.24068,2824.6,2824.3,0.0052399]
[1645907630345,4.01,2824.5,2824.3,0.0052399]
[1645907630547,0.00119601,2824.3,2824.2,0.14662183]
[1645907630744,0.04002208,2823.8,2823.7,3.67149085]
[1645907630945,0.04002208,2823.8,2823.7,2.4828238]
[1645907631155,0.11485566,2823.8,2823.7,2.4828238]
[1645907631450,0.11485566,2823.8,2823.7,1.4828238]
[1645907631650,0.11485566,2823.8,2823.6,1.4828238]
[1645907631852,0.07483358,2823.7,2823.6,1.48806466]
[1645907632853,0.07483358,2823.7,2823.6,1.4828238]
[1645907633654,0.04002208,2823.8,2823.6,1.4828238]
[1645907633872,0.0748313,2823.7,2823.6,1.4828238]
[1645907634473,0.0748313,2823.7,2823.6,1.48806473]
[1645907635276,0.0748313,2823.7,2823.6,1.4828238]
[1645907636477,0.0748313,2823.7,2823.6,12.9576238]
[1645907636679,0.04002208,2823.8,2823.6,12.9576238]
[1645907636877,0.04002208,2823.8,2823.7,1.8376238]
[1645907637077,0.00119601,2824.3,2823.8,5.3548]
[1645907637277,0.00119601,2824.3,2823.9,2.7872238]
[1645907637535,0.00119601,2824.3,2824.0,1.4828238]
[1645907637931,0.00119601,2824.3,2824.0,1.78806418]
[1645907638130,0.00119601,2824.3,2824.1,1.4828238]
[1645907638928,0.07601908,2824.3,2824.1,1.4828238]
[1645907639128,0.07482307,2824.2,2824.1,2.77126971]
[1645907639328,0.07482307,2824.2,2824.1,3.77126971]
[1645907639527,0.00119601,2824.3,2824.1,3.77126971]
[1645907639829,0.00119601,2824.3,2824.2,1.48616254]
[1645907643681,0.07601908,2824.3,2824.2,1.48616254]
[1645907643882,0.00119601,2824.3,2824.2,1.48616254]